bitfinex/quotes_BTCUSD_20241027
["timestamp","ask_amount","ask_price","bid_price","bid_amount"]
[1730045810520,0.15963714,67786.0,67780.0,0.0776]
[1730045810739,0.52928741,67786.0,67780.0,0.0776]
[1730045811600,0.53128741,67786.0,67780.0,0.0776]
[1730045811808,0.68179122,67786.0,67780.0,0.0776]
[1730045812464,0.67979122,67786.0,67780.0,0.0776]
[1730045812726,0.52928741,67786.0,67780.0,0.0776]
[1730045813168,0.52928741,67786.0,67785.0,0.23312844]
[1730045813375,0.55239363,67786.0,67785.0,0.23312844]
[1730045813785,0.45239363,67786.0,67785.0,0.23312844]
[1730045813960,0.44239363,67786.0,67785.0,0.23312844]
[1730045814157,0.41928741,67786.0,67785.0,0.24290319]
[1730045815566,0.41917327,67786.0,67785.0,0.24290319]
[1730045816025,0.27165027,67786.0,67785.0,0.24290319]
[1730045816172,0.41917327,67786.0,67785.0,0.24290319]
[1730045816612,0.41917327,67786.0,67785.0,0.23312844]
[1730045817018,0.41917327,67786.0,67785.0,0.24289452]
[1730045819017,0.29802681,67786.0,67785.0,0.24289452]
[1730045819894,0.15050381,67786.0,67785.0,0.24289452]
[1730045820119,0.29802681,67786.0,67785.0,0.24289452]
[1730045821078,0.00221366,67787.0,67786.0,0.079]
[1730045821304,0.00221366,67787.0,67786.0,0.317123]
[1730045821550,0.00221366,67787.0,67786.0,0.32688842]
[1730045822546,0.10991887,67788.0,67786.0,0.32688842]
[1730045822547,0.10991887,67788.0,67787.0,0.15240586]
[1730045822781,0.10991887,67788.0,67787.0,0.33175726]
[1730045822992,0.10991887,67788.0,67787.0,0.3268714]
[1730045823195,0.10991887,67788.0,67787.0,0.33175726]
[1730045823826,0.51655655,67806.0,67798.0,0.1696]
[1730045824044,0.147489,67802.0,67798.0,0.317096]
[1730045824247,0.294972,67804.0,67798.0,0.1793441]
[1730045824457,0.294972,67804.0,67799.0,0.147493]
[1730045824458,0.147486,67803.0,67799.0,0.147493]
[1730045824686,0.29798981,67803.0,67802.0,0.13373416]
[1730045824829,0.29798981,67803.0,67802.0,0.21273416]
[1730045825054,0.15050381,67803.0,67802.0,0.2224756]
[1730045825211,0.15050381,67803.0,67802.0,0.2214896]
[1730045825423,0.29798981,67803.0,67802.0,0.2224756]
[1730045825880,0.29798981,67803.0,67802.0,0.08874144]
[1730045826504,0.000823,67808.0,67803.0,0.1696]
[1730045826770,0.29798081,67807.0,67806.0,0.13373416]
[1730045827000,0.295776,67808.0,67806.0,0.13373416]
[1730045827001,0.295776,67808.0,67806.0,0.14345071]
[1730045827002,0.000823,67808.0,67806.0,0.14345071]
[1730045827207,0.000823,67808.0,67807.0,0.317077]
[1730045827630,0.000823,67808.0,67807.0,0.32679244]
[1730045828989,0.000823,67808.0,67807.0,0.3316783]
[1730045831744,0.000823,67808.0,67807.0,0.1842013]
[1730045832299,0.000823,67808.0,67807.0,0.3316783]
[1730045834287,0.000823,67808.0,67807.0,0.3596783]
[1730045836562,0.000823,67808.0,67807.0,0.3316783]
[1730045836769,0.000823,67808.0,67807.0,0.31793546]
[1730045837217,0.000823,67808.0,67807.0,0.17931544]
[1730045837435,0.148298,67808.0,67807.0,0.17931544]
[1730045837855,0.000823,67808.0,67807.0,0.1696]
[1730045838089,0.148298,67808.0,67807.0,0.1696]
[1730045838292,0.148298,67808.0,67807.0,0.17924481]
[1730045838508,0.148298,67808.0,67807.0,0.1696]
[1730045839406,0.148298,67808.0,67807.0,0.079]
[1730045839407,0.29880181,67808.0,67807.0,0.079]
[1730045840553,0.29880181,67808.0,67794.0,0.0921]
[1730045840554,0.294959,67806.0,67794.0,0.0921]
[1730045840772,0.147498,67798.0,67794.0,0.0921]
[1730045841017,0.294987,67800.0,67795.0,0.00968141]
[1730045841207,0.147498,67798.0,67796.0,0.082]
[1730045841415,0.147498,67798.0,67797.0,0.00968355]
[1730045842064,0.147498,67798.0,67796.0,0.082]
[1730045842496,0.147498,67798.0,67797.0,0.00968355]
[1730045843422,0.147495,67799.0,67797.0,0.001646]
[1730045843839,0.147496,67798.0,67797.0,0.001646]
[1730045847080,0.29799981,67798.0,67797.0,0.001646]
[1730045848663,0.29811395,67798.0,67797.0,0.001646]
[1730045854583,0.39811395,67798.0,67797.0,0.001646]
[1730045857052,0.40811395,67798.0,67797.0,0.001646]
[1730045859507,0.46714495,67798.0,67797.0,0.001646]
[1730045861546,0.51122551,67798.0,67797.0,0.001646]
[1730045862139,0.53034597,67798.0,67797.0,0.001646]
[1730045862354,0.84765997,67798.0,67797.0,0.001646]
[1730045862778,0.86970025,67798.0,67797.0,0.001646]
[1730045863650,0.75949884,67798.0,67797.0,0.001646]
[1730045863870,0.86970025,67798.0,67797.0,0.001646]
[1730045865086,0.88741738,67798.0,67797.0,0.001646]
[1730045865505,0.77721597,67798.0,67797.0,0.001646]
[1730045865706,0.88741738,67798.0,67797.0,0.001646]
[1730045866616,0.86970025,67798.0,67797.0,0.001646]
[1730045867682,0.75949884,67798.0,67797.0,0.001646]
[1730045868333,0.74037838,67798.0,67797.0,0.001646]
[1730045868807,0.60664422,67798.0,67797.0,0.001646]
[1730045869425,0.69481702,67798.0,67797.0,0.001646]
[1730045869878,0.60664422,67798.0,67797.0,0.001646]
[1730045870076,0.74037838,67798.0,67797.0,0.001646]
[1730045870306,1.0010836,67798.0,67797.0,0.001646]
[1730045870741,1.0030836,67798.0,67797.0,0.001646]
[1730045871229,0.89088219,67798.0,67797.0,0.001646]
[1730045871463,1.0010836,67798.0,67797.0,0.001646]
[1730045872321,0.85057979,67798.0,67797.0,0.001646]
[1730045873011,0.74037838,67798.0,67797.0,0.001646]
[1730045873441,0.74221437,67798.0,67797.0,0.001646]
[1730045874628,0.85239033,67798.0,67797.0,0.001646]
[1730045874829,0.74221437,67798.0,67797.0,0.001646]
[1730045875010,0.74021437,67798.0,67797.0,0.001646]
[1730045878069,0.89046972,67798.0,67797.0,0.001646]
[1730045878265,0.89046849,67798.0,67797.0,0.001646]
[1730045880104,0.73996468,67798.0,67797.0,0.001646]
[1730045881218,0.74044491,67798.0,67797.0,0.001646]
[1730045881866,0.74244491,67798.0,67797.0,0.001646]
[1730045882506,0.87478662,67798.0,67797.0,0.001646]
[1730045883567,0.74244491,67798.0,67797.0,0.001646]
[1730045883927,0.74044491,67798.0,67797.0,0.001646]
[1730045884106,0.89094872,67798.0,67797.0,0.001646]
[1730045884548,0.84949239,67798.0,67797.0,0.001646]
[1730045885092,0.69898858,67798.0,67797.0,0.001646]
[1730045885296,0.69908542,67798.0,67797.0,0.001646]
[1730045886071,0.69913772,67798.0,67797.0,0.001646]
[1730045890471,0.69936677,67798.0,67797.0,0.001646]
[1730045890707,0.81265781,67798.0,67797.0,0.001646]
[1730045892370,0.81265781,67798.0,67797.0,0.201046]
[1730045892371,0.71537998,67798.0,67797.0,0.201046]
[1730045892598,0.55123484,67798.0,67797.0,0.201046]
[1730045892799,0.68397102,67798.0,67797.0,0.201046]
[1730045893032,0.55123484,67798.0,67797.0,0.201046]
[1730045894065,0.65123484,67798.0,67797.0,0.201046]
[1730045896024,0.78397102,67798.0,67797.0,0.201046]
[1730045896231,0.65123484,67798.0,67797.0,0.201046]
[1730045896635,0.78397102,67798.0,67797.0,0.201046]
[1730045897873,0.65123484,67798.0,67797.0,0.201046]
[1730045898075,0.78397102,67798.0,67797.0,0.201046]
[1730045904183,0.78618412,67798.0,67797.0,0.201046]
[1730045906977,0.78397102,67798.0,67797.0,0.201046]
[1730045907343,0.78618412,67798.0,67797.0,0.201046]
[1730045908775,0.7876511,67798.0,67797.0,0.201046]
[1730045910699,0.65491993,67798.0,67797.0,0.201046]
[1730045911674,0.55491993,67798.0,67797.0,0.201046]
[1730045920819,0.66549389,67798.0,67797.0,0.201046]
[1730045922501,0.55491993,67798.0,67797.0,0.201046]
[1730045926239,0.55491993,67798.0,67797.0,0.084746]
[1730045927483,0.55559124,67798.0,67797.0,0.084746]
[1730045932084,0.55539675,67798.0,67797.0,0.079746]
[1730045933176,0.55539675,67798.0,67797.0,0.0894818]
[1730045933445,0.55539675,67798.0,67797.0,0.079746]
[1730045937169,0.55539675,67798.0,67797.0,0.081392]
[1730045940704,0.55543706,67798.0,67797.0,0.081392]
[1730045942249,0.55543706,67798.0,67797.0,0.200592]
[1730045942690,0.55543706,67798.0,67797.0,0.21032339]
[1730045944088,0.55543706,67798.0,67797.0,0.200592]
[1730045944513,0.55543706,67798.0,67797.0,0.230152]
[1730045945156,0.55543706,67798.0,67797.0,0.23988339]
[1730045946115,0.55543706,67798.0,67797.0,0.230152]
[1730045948487,0.55626006,67798.0,67797.0,0.230152]
[1730045949237,0.41432695,67798.0,67797.0,0.230152]
[1730045957478,0.41432695,67798.0,67797.0,0.110952]
[1730045958698,0.69128129,67798.0,67797.0,0.110952]
[1730045959398,0.69128129,67798.0,67797.0,0.12067963]
[1730045959640,0.69128129,67798.0,67797.0,0.110952]
[1730045961429,0.41432695,67798.0,67797.0,0.110952]
[1730045961664,0.69087699,67798.0,67797.0,0.110952]
[1730045963306,0.55797688,67798.0,67797.0,0.12067963]
[1730045964044,0.55797688,67798.0,67797.0,0.110952]
[1730045964218,0.55797688,67798.0,67797.0,0.12067963]
[1730045964988,0.55797688,67798.0,67797.0,0.110952]
[1730045965199,0.55797688,67798.0,67797.0,0.12067963]
[1730045966049,0.55777688,67798.0,67797.0,0.110952]
[1730045970752,0.55799171,67798.0,67797.0,0.110952]
[1730045973654,0.69088274,67798.0,67797.0,0.110952]
[1730045975445,0.69049901,67798.0,67797.0,0.110952]
[1730045976267,0.55760508,67798.0,67797.0,0.110952]
[1730045980340,0.55932159,67798.0,67797.0,0.110952]
[1730045984726,0.57892372,67798.0,67797.0,0.110952]
[1730045984956,0.44511006,67798.0,67797.0,0.110952]
[1730045989675,0.44514524,67798.0,67797.0,0.110952]
[1730045993960,0.57803722,67798.0,67797.0,0.110952]
[1730045994173,0.57781197,67798.0,67797.0,0.110952]
[1730045994435,0.44491998,67798.0,67797.0,0.110952]
[1730045996564,0.44991998,67798.0,67797.0,0.001646]
[1730046002298,0.44932738,67798.0,67797.0,0.001646]
[1730046002517,0.85439722,67798.0,67797.0,0.001646]
[1730046002732,0.147518,67788.0,67787.0,0.001646]
[1730046002937,0.52314937,67788.0,67787.0,0.001646]
[1730046003140,0.14752,67787.0,67786.0,0.05506056]
[1730046003406,0.44131528,67787.0,67786.0,0.05506056]
[1730046006456,0.55192046,67787.0,67786.0,0.05506056]
[1730046006867,0.55184517,67787.0,67786.0,0.05506056]
[1730046007099,0.55184517,67787.0,67781.0,0.0767]
[1730046007100,0.005,67786.0,67781.0,0.0767]
[1730046007334,0.44624299,67786.0,67781.0,0.0767]
[1730046007563,0.44624299,67786.0,67785.0,0.07183051]
[1730046007776,0.44624299,67786.0,67785.0,0.06312844]
[1730046009506,0.55679135,67786.0,67785.0,0.06312844]
[1730046009743,0.44624299,67786.0,67785.0,0.06312844]
[1730046010588,0.30302681,67786.0,67785.0,0.06312844]
[1730046010766,0.55606073,67786.0,67785.0,0.06312844]
[1730046011367,0.44052764,67786.0,67785.0,0.25832844]
[1730046012001,0.29802681,67786.0,67785.0,0.26650735]
[1730046013175,0.4408441,67786.0,67785.0,0.26650735]
[1730046013604,0.52925308,67786.0,67785.0,0.26650735]
[1730046013895,0.52925308,67786.0,67785.0,0.25832844]
[1730046014543,0.36433078,67786.0,67785.0,0.25832844]
[1730046016185,0.36432909,67786.0,67785.0,0.25832844]
[1730046019342,0.44116052,67786.0,67785.0,0.25832844]
[1730046019547,0.52956356,67786.0,67785.0,0.25832844]
[1730046019765,0.29802681,67786.0,67785.0,0.25832844]
[1730046022562,0.44113394,67786.0,67785.0,0.25832844]
[1730046025674,0.4414019,67786.0,67785.0,0.25832844]
[1730046027278,0.52981157,67786.0,67785.0,0.25832844]
[1730046028295,0.75140512,67786.0,67785.0,0.25832844]
[1730046028569,0.67020929,67786.0,67785.0,0.06312844]
[1730046028781,0.55372988,67786.0,67785.0,0.06312844]
[1730046029248,0.68634439,67786.0,67785.0,0.06312844]
[1730046030133,0.41035479,67786.0,67785.0,0.06312844]
[1730046030351,0.68609575,67786.0,67785.0,0.06312844]
[1730046031233,0.853955,67786.0,67785.0,0.06312844]
[1730046031883,0.70345119,67786.0,67785.0,0.06312844]
[1730046032098,0.570819,67786.0,67785.0,0.06312844]
[1730046033633,0.7377824,67786.0,67785.0,0.06312844]
[1730046034880,0.73775814,67786.0,67785.0,0.06312844]
[1730046036948,0.73975814,67786.0,67785.0,0.06312844]
[1730046038399,0.73775814,67786.0,67785.0,0.06312844]
[1730046038790,0.95935169,67786.0,67785.0,0.06312844]
[1730046039011,0.87368045,67786.0,67785.0,0.06312844]
[1730046039856,0.87373298,67786.0,67785.0,0.06312844]
[1730046040718,0.87573298,67786.0,67785.0,0.06312844]
[1730046041121,0.87373298,67786.0,67785.0,0.06312844]
[1730046041525,0.86660511,67786.0,67785.0,0.06312844]
[1730046041729,0.7306828,67786.0,67785.0,0.06312844]
[1730046041929,0.82296063,67786.0,67785.0,0.06312844]
[1730046043440,0.97214602,67786.0,67785.0,0.06312844]
[1730046044072,0.82296063,67786.0,67785.0,0.06312844]
[1730046044362,0.67982359,67786.0,67785.0,0.06312844]
[1730046044559,0.82283354,67786.0,67785.0,0.06312844]
[1730046045666,0.82483354,67786.0,67785.0,0.06312844]
[1730046046221,0.82283354,67786.0,67785.0,0.06312844]
[1730046047109,0.97206682,67786.0,67785.0,0.06312844]
[1730046047570,0.97333735,67786.0,67785.0,0.06312844]
[1730046047764,1.12257063,67786.0,67785.0,0.06312844]
[1730046048422,0.82283354,67786.0,67785.0,0.06312844]
[1730046048544,0.82483354,67786.0,67785.0,0.06312844]
[1730046048893,0.97208507,67786.0,67785.0,0.06312844]
[1730046049586,0.97088163,67786.0,67785.0,0.06312844]
[1730046049886,0.97288163,67786.0,67785.0,0.06312844]
[1730046050102,1.06747452,67786.0,67785.0,0.06312844]
[1730046051228,1.06947452,67786.0,67785.0,0.06312844]
[1730046051454,1.06747452,67786.0,67785.0,0.06312844]
[1730046051704,1.06947452,67786.0,67785.0,0.06312844]
[1730046052274,1.06747452,67786.0,67785.0,0.06312844]
[1730046052681,1.06947452,67786.0,67785.0,0.06312844]
[1730046053677,1.06747452,67786.0,67785.0,0.06312844]
[1730046057333,1.06947452,67786.0,67785.0,0.06312844]
[1730046057528,0.9562219,67786.0,67785.0,0.00383055]
[1730046057995,0.97732959,67786.0,67785.0,0.00383055]
[1730046059203,0.84673779,67786.0,67785.0,0.00383055]
[1730046059412,1.09673779,67786.0,67785.0,0.00383055]
[1730046059610,1.21143779,67786.0,67785.0,0.00383055]
[1730046060017,1.3619416,67786.0,67785.0,0.00383055]
[1730046060224,1.3599416,67786.0,67785.0,0.00383055]
[1730046060441,0.75765214,67779.0,67778.0,0.001644]
[1730046060645,1.39387433,67779.0,67778.0,0.001644]
[1730046061057,1.39587433,67779.0,67778.0,0.001644]
[1730046061722,1.39547193,67779.0,67778.0,0.001644]
[1730046061985,1.54397574,67779.0,67778.0,0.001644]
[1730046062196,1.74562631,67779.0,67778.0,0.001644]
[1730046062998,1.74362631,67779.0,67778.0,0.001644]
[1730046063409,1.5931225,67779.0,67778.0,0.001644]
[1730046063610,1.41056695,67779.0,67778.0,0.001644]
[1730046063788,1.41256695,67779.0,67778.0,0.001644]
[1730046068481,1.56170099,67779.0,67778.0,0.001644]
[1730046068917,1.55705917,67779.0,67778.0,0.001644]
[1730046069126,1.70756298,67779.0,67778.0,0.001644]
[1730046069354,1.90721355,67779.0,67778.0,0.001644]
[1730046069792,1.9182688,67779.0,67778.0,0.001644]
[1730046070199,1.76913476,67779.0,67778.0,0.001644]
[1730046070863,1.76983894,67779.0,67778.0,0.001644]
[1730046071064,1.76783894,67779.0,67778.0,0.001644]
[1730046072831,0.4652138,67776.0,67775.0,0.001668]
[1730046073049,0.7393032,67776.0,67775.0,0.001668]
[1730046073276,0.92385886,67776.0,67775.0,0.001668]
[1730046073504,1.01251886,67776.0,67775.0,0.001668]
[1730046073728,1.00831095,67776.0,67775.0,0.001668]
[1730046075947,0.28266314,67774.0,67773.0,0.00149979]
[1730046076169,0.82450512,67774.0,67773.0,0.00149979]
[1730046076400,0.74128254,67774.0,67773.0,0.00149979]
[1730046076627,0.74328254,67774.0,67773.0,0.00149979]
[1730046076811,0.8827311,67774.0,67773.0,7.9e-07]
[1730046077283,0.8807311,67774.0,67773.0,7.9e-07]
[1730046078159,0.82250512,67774.0,67773.0,7.9e-07]
[1730046078851,0.82450512,67774.0,67773.0,7.9e-07]
[1730046079282,0.91678295,67774.0,67773.0,7.9e-07]
[1730046079703,1.00906078,67774.0,67773.0,7.9e-07]
[1730046080797,1.00706078,67774.0,67773.0,7.9e-07]
[1730046081030,1.15756459,67774.0,67773.0,7.9e-07]
[1730046081673,0.51011414,67769.0,67768.0,7.9e-07]
[1730046081811,1.40879584,67769.0,67768.0,7.9e-07]
[1730046082015,1.40879584,67769.0,67763.0,0.179]
[1730046082016,0.28267814,67767.0,67766.0,7.9e-07]
[1730046082225,0.72418004,67767.0,67766.0,7.9e-07]
[1730046082431,0.78125963,67767.0,67766.0,7.9e-07]
[1730046082847,0.25768714,67763.0,67762.0,7.9e-07]
[1730046083031,1.03154926,67763.0,67762.0,7.9e-07]
[1730046083236,0.88266923,67763.0,67762.0,7.9e-07]
[1730046083467,0.90766923,67763.0,67762.0,7.9e-07]
[1730046083686,1.05817304,67763.0,67762.0,7.9e-07]
[1730046083887,0.50970014,67757.0,67756.0,0.0926]
[1730046084231,1.03693529,67757.0,67756.0,0.0926]
[1730046084446,1.03335716,67757.0,67756.0,0.0926]
[1730046085729,0.94107933,67757.0,67756.0,0.0926]
[1730046085962,1.18319411,67757.0,67756.0,0.0926]
[1730046086821,1.18319411,67757.0,67742.0,0.00167]
[1730046086822,0.005,67743.0,67742.0,0.00167]
[1730046087031,0.5457634,67743.0,67742.0,0.00167]
[1730046087240,0.55087754,67743.0,67742.0,0.00167]
[1730046087669,0.23991983,67731.0,67730.0,0.00322586]
[1730046087877,0.39042364,67731.0,67730.0,0.00322586]
[1730046088107,0.52770671,67731.0,67730.0,0.00322586]
[1730046088320,0.28778688,67731.0,67717.0,0.03534247]
[1730046088538,0.15050381,67730.0,67717.0,0.03534247]
[1730046088743,0.147659,67724.0,67719.0,0.02956]
[1730046088958,0.15050381,67723.0,67719.0,0.02956]
[1730046089112,0.29816381,67723.0,67720.0,0.01099192]
[1730046089935,0.15050381,67723.0,67721.0,0.1746]
[1730046090145,0.15050381,67723.0,67720.0,0.01099192]
[1730046090146,0.22159355,67726.0,67723.0,0.1738]
[1730046090376,0.37209736,67726.0,67723.0,0.1738]
[1730046090598,0.51975236,67725.0,67724.0,0.18478872]
[1730046090810,0.15050381,67725.0,67724.0,0.18478872]
[1730046091613,0.15050381,67725.0,67724.0,0.27706655]
[1730046091827,0.15050381,67725.0,67724.0,0.18478872]
[1730046092215,0.00221522,67729.0,67727.0,0.0929]
[1730046092443,0.37209736,67728.0,67727.0,0.1738]
[1730046092653,0.15050381,67728.0,67727.0,0.1738]
[1730046093429,0.15050381,67728.0,67727.0,0.18478632]
[1730046094854,0.15050381,67728.0,67727.0,0.21434632]
[1730046095650,0.29815281,67728.0,67727.0,0.21434632]
[1730046098440,0.29815281,67728.0,67727.0,0.20336]
[1730046098656,0.42103135,67728.0,67727.0,0.21434632]
[1730046099529,0.12287854,67728.0,67727.0,0.36199732]
[1730046099754,0.04477854,67728.0,67727.0,0.36699732]
[1730046100663,0.04477854,67728.0,67727.0,0.45927515]
[1730046101745,0.04642454,67728.0,67727.0,0.45927515]
[1730046101962,0.04642454,67728.0,67727.0,0.45427515]
[1730046102182,0.04642454,67728.0,67727.0,0.45927515]
[1730046102870,0.04642454,67728.0,67727.0,0.36699732]
[1730046103088,0.04642454,67728.0,67727.0,0.45927515]
[1730046103734,0.22159355,67739.0,67735.0,0.147634]
[1730046103735,0.00221534,67736.0,67735.0,0.147634]
[1730046103955,0.00221534,67736.0,67735.0,0.33121953]
[1730046104189,0.00221534,67736.0,67735.0,0.42349736]
[1730046105049,0.00221534,67736.0,67735.0,0.45305736]
[1730046113489,0.00221534,67736.0,67735.0,0.21314553]
[1730046113702,0.00386134,67736.0,67735.0,0.21314553]
[1730046114187,0.30199615,67736.0,67735.0,0.21314553]
[1730046114439,0.14764,67732.0,67731.0,0.10976]
[1730046114651,0.29814381,67732.0,67731.0,0.10976]
[1730046114859,0.29814381,67732.0,67731.0,0.11953139]
[1730046115085,0.29814381,67732.0,67731.0,0.10976]
[1730046115327,0.29814381,67732.0,67731.0,0.11953139]
[1730046117706,0.29814381,67732.0,67731.0,0.10976]
[1730046117934,0.29814381,67732.0,67731.0,0.11953139]
[1730046118785,0.29814381,67732.0,67731.0,0.10976]
[1730046118993,0.29814381,67732.0,67731.0,0.11953139]
[1730046119232,0.29814381,67732.0,67731.0,0.00977139]
[1730046119455,0.29814381,67732.0,67728.0,0.000823]
[1730046119456,0.147647,67729.0,67728.0,0.000823]
[1730046119667,0.29815081,67729.0,67728.0,0.000823]
[1730046120308,0.29815081,67729.0,67728.0,0.01061281]
[1730046120530,0.29815081,67729.0,67728.0,0.000823]
[1730046120686,0.29815081,67729.0,67728.0,0.01061281]
[1730046120928,0.29815081,67729.0,67728.0,0.000823]
[1730046121091,0.29815081,67729.0,67728.0,0.01061281]
[1730046121297,0.29815081,67729.0,67728.0,0.000823]
[1730046121481,0.29815081,67729.0,67728.0,0.01061281]
[1730046122148,0.15050381,67729.0,67728.0,0.01061281]
[1730046122401,0.29815081,67729.0,67728.0,0.01061281]
[1730046122757,0.15050381,67729.0,67728.0,0.01061281]
[1730046122961,0.15050381,67729.0,67728.0,0.25126181]
[1730046123201,0.04414096,67733.0,67728.0,0.21337281]
[1730046123565,0.15050381,67732.0,67731.0,0.350402]
[1730046123787,0.00386134,67736.0,67735.0,0.350394]
[1730046124000,0.15436515,67736.0,67735.0,0.350394]
[1730046124220,0.15436515,67736.0,67735.0,0.36142469]
[1730046124505,0.15436515,67736.0,67735.0,0.45370252]
[1730046125684,0.00386134,67736.0,67735.0,0.45370252]
[1730046127728,0.00386134,67736.0,67735.0,0.45870252]
[1730046127729,0.001646,67736.0,67735.0,0.45870252]
[1730046128689,0.001646,67736.0,67735.0,0.50046309]
[1730046132380,0.001646,67736.0,67735.0,0.51046309]
[1730046133325,0.001646,67736.0,67735.0,0.51246309]
[1730046133552,0.001646,67736.0,67735.0,0.64450149]
[1730046134245,0.001646,67736.0,67735.0,0.64650149]
[1730046134478,0.001646,67736.0,67735.0,0.51246309]
[1730046134705,0.001646,67736.0,67735.0,0.64650149]
[1730046135154,0.001646,67736.0,67735.0,0.64450149]
[1730046136061,0.001646,67736.0,67735.0,0.64650149]
[1730046136498,0.001646,67736.0,67735.0,0.51046309]
[1730046136716,0.001646,67736.0,67735.0,0.64650149]
[1730046137160,0.001646,67736.0,67735.0,0.64450149]
[1730046139125,0.22159355,67744.0,67743.0,0.005]
[1730046139352,0.22159355,67744.0,67743.0,0.48926626]
[1730046139577,0.22159355,67744.0,67743.0,0.4863144]
[1730046139820,0.1194279,67745.0,67744.0,0.182174]
[1730046140055,0.1194279,67745.0,67744.0,0.35522576]
[1730046140269,0.1194279,67745.0,67744.0,0.36320148]
[1730046144419,0.1194279,67745.0,67744.0,0.18810148]
[1730046144643,0.1194279,67745.0,67744.0,0.04048748]
[1730046144876,0.2670399,67745.0,67744.0,0.04048748]
[1730046145338,0.41754371,67745.0,67744.0,0.04048748]
[1730046145990,0.41754371,67745.0,67744.0,0.02956]
[1730046146236,0.41754371,67745.0,67744.0,0.01028292]
[1730046146478,0.26993171,67745.0,67744.0,0.03984292]
[1730046146702,0.41754371,67745.0,67744.0,0.02956]
[1730046146935,0.26993171,67745.0,67744.0,0.18745692]
[1730046147382,0.1194279,67745.0,67744.0,0.36550905]
[1730046147609,0.1194279,67745.0,67744.0,0.36255692]
[1730046147836,0.1194279,67745.0,67744.0,0.26825692]
[1730046148080,0.1194279,67745.0,67744.0,0.19245692]
[1730046148533,0.1194279,67745.0,67744.0,0.18745692]
[1730046148785,0.1210739,67745.0,67744.0,0.18745692]
[1730046149506,0.27157771,67745.0,67744.0,0.18745692]
[1730046151322,0.27157771,67745.0,67744.0,0.03984292]
[1730046152208,0.27157771,67745.0,67744.0,0.18745692]
[1730046152460,0.27157771,67745.0,67744.0,0.03984292]
[1730046152926,0.27157771,67745.0,67744.0,0.01028292]
[1730046153153,0.27157771,67745.0,67744.0,0.15789692]
[1730046155952,0.27157771,67745.0,67744.0,0.29193532]
[1730046157418,0.1210739,67745.0,67744.0,0.29193532]
[1730046157655,0.1210739,67745.0,67744.0,0.32149532]
[1730046159592,0.1210739,67745.0,67744.0,0.32649532]
[1730046159828,0.1210739,67745.0,67744.0,0.40389532]
[1730046160563,0.1210739,67745.0,67744.0,0.49979532]
[1730046161299,0.1210739,67745.0,67744.0,0.50679532]
[1730046161539,0.1210739,67745.0,67744.0,0.50979532]
[1730046162431,0.1210739,67745.0,67744.0,0.51179532]
[1730046163532,0.1210739,67745.0,67744.0,0.50979532]
[1730046164897,0.1210739,67745.0,67744.0,0.51179532]
[1730046166248,0.1210739,67745.0,67744.0,0.50979532]
[1730046166487,0.1210739,67745.0,67744.0,0.53479532]
[1730046166950,0.1210739,67745.0,67744.0,0.53279532]
[1730046167182,0.1210739,67745.0,67744.0,0.68329913]
[1730046168587,0.1210739,67745.0,67744.0,0.68529913]
[1730046168803,0.1210739,67745.0,67744.0,0.50979532]
[1730046182601,0.1210739,67745.0,67744.0,0.56040656]
[1730046184863,0.1197739,67745.0,67744.0,0.56040656]
[1730046185552,0.1197739,67745.0,67744.0,0.36575692]
[1730046185765,0.1197739,67745.0,67744.0,0.45808174]
[1730046185978,0.1197739,67745.0,67744.0,0.36218174]
[1730046186400,0.1197739,67745.0,67744.0,0.19245692]
[1730046186621,0.1197739,67745.0,67744.0,0.28478174]
[1730046191334,0.001646,67745.0,67744.0,0.28478174]
[1730046195185,0.001646,67745.0,67744.0,0.38005836]
[1730046195420,0.001646,67745.0,67744.0,0.55980656]
[1730046199428,0.001646,67745.0,67744.0,0.55480656]
[1730046199852,0.001646,67745.0,67744.0,0.54980656]
[1730046200541,0.001646,67745.0,67744.0,0.45748174]
[1730046200766,0.001646,67745.0,67744.0,0.46248174]
[1730046200997,0.001646,67745.0,67744.0,0.45748174]
[1730046201906,0.001646,67745.0,67744.0,0.28478174]
[1730046206341,0.001646,67745.0,67744.0,0.18745692]
[1730046207446,0.097946,67745.0,67744.0,0.03984292]
[1730046207653,0.178946,67745.0,67744.0,0.03984292]
[1730046207860,0.178946,67745.0,67744.0,0.04066592]
[1730046208919,0.178946,67745.0,67744.0,0.18827992]
[1730046210601,0.178946,67745.0,67744.0,0.04066592]
[1730046211044,0.178946,67745.0,67744.0,0.18827992]
[1730046212839,0.097946,67745.0,67744.0,0.18827992]
[1730046213991,0.001646,67745.0,67744.0,0.18827992]
[1730046214331,0.001646,67745.0,67744.0,0.1912319]
[1730046214945,0.001646,67745.0,67744.0,0.18827992]
[1730046216401,0.001646,67745.0,67744.0,0.19123189]
[1730046217304,0.001646,67745.0,67744.0,0.18827992]
[1730046222850,0.001646,67745.0,67744.0,0.1912319]
[1730046223125,0.001646,67745.0,67744.0,0.18827992]
[1730046223598,0.001646,67745.0,67744.0,0.1912319]
[1730046224516,0.001646,67745.0,67744.0,0.19123189]
[1730046224734,0.001646,67745.0,67744.0,0.18827992]
[1730046224930,0.001646,67745.0,67744.0,0.1912319]
[1730046225150,0.001646,67745.0,67744.0,0.18827992]
[1730046227286,0.001646,67745.0,67744.0,0.1912319]
[1730046234227,0.001646,67745.0,67744.0,0.18827992]
[1730046236069,0.001646,67745.0,67744.0,0.19123181]
[1730046240116,0.001646,67745.0,67744.0,0.18827992]
[1730046240790,0.001646,67745.0,67744.0,0.28763182]
[1730046242971,0.001646,67745.0,67744.0,0.47445664]
[1730046243214,0.001646,67745.0,67744.0,0.37917992]
[1730046246461,0.001646,67745.0,67744.0,0.37417992]
[1730046246695,0.001646,67745.0,67744.0,0.36917992]
[1730046248862,0.001646,67745.0,67744.0,0.28967992]
[1730046249100,0.001646,67745.0,67744.0,0.19327992]
[1730046249825,0.001646,67745.0,67744.0,0.18827992]
[1730046250525,0.001646,67745.0,67744.0,0.19327992]
[1730046251479,0.001646,67745.0,67744.0,0.04066592]
[1730046251706,0.001646,67745.0,67744.0,0.18827992]
[1730046252418,0.001646,67745.0,67744.0,0.04066592]
[1730046253310,0.001646,67745.0,67744.0,0.030383]
[1730046253540,0.001646,67745.0,67744.0,0.000823]
[1730046253825,0.149258,67745.0,67744.0,0.000823]
[1730046254042,0.001646,67745.0,67744.0,0.000823]
[1730046254702,0.001646,67745.0,67744.0,0.04042824]
[1730046254871,0.001646,67745.0,67744.0,0.030383]
[1730046255137,0.149258,67745.0,67744.0,0.030383]
[1730046255343,0.149258,67745.0,67744.0,0.04042824]
[1730046257326,0.001646,67745.0,67744.0,0.04042824]
[1730046257735,0.149258,67745.0,67744.0,0.04042824]
[1730046258773,0.29976181,67745.0,67744.0,0.04042824]